fUSD/lending_fUSD_20260519
["ID","MTS","AMOUNT","RATE_DAILY","PERIOD"]
[422602794,1779142243000,-300.0,0.00014999,2]
[422602801,1779142243000,-1000.0,0.00015,2]
[422602806,1779142243000,-201.76384242,0.00015,2]
[422602795,1779142243000,-300.0,0.00014999,2]
[422602793,1779142243000,-300.0,0.00014999,2]
[422602799,1779142243000,-1000.0,0.00015,2]
[422602798,1779142243000,-1000.0,0.00015,2]
[422602800,1779142243000,-1000.0,0.00015,2]
[422602805,1779142243000,-1000.0,0.00015,2]
[422602804,1779142243000,-1000.0,0.00015,2]
[422602802,1779142243000,-1000.0,0.00015,2]
[422602796,1779142243000,-666.0,0.00014999,2]
[422602808,1779142243000,-151.0,0.00015,2]
[422602840,1779142406000,153.26,6.865e-05,2]
[422602843,1779142725000,152.0,8.403e-05,2]
[422602844,1779142751000,152.0,8.404e-05,2]
[422602845,1779142946000,179.13317937,0.0001261,2]
[422602846,1779143073000,151.53,0.00012671,2]
[422602847,1779143085000,162.86,0.00012662,2]
[422602848,1779143097000,42.47682063,0.00012668,2]
[422602850,1779143341000,1000.0,0.00030135,120]
[422602867,1779143431000,-200.0,0.0001253,2]
[422602865,1779143431000,-19609.06503122,0.00012432,2]
[422602863,1779143431000,-194.0,0.00012431,2]
[422602862,1779143431000,-259.49424222,0.00012431,2]
[422602860,1779143431000,-1200.0,0.00012431,2]
[422602858,1779143431000,-626.4700637,0.00012402,2]
[422602861,1779143431000,-40.50575778,0.00012431,2]
[422602856,1779143431000,-778.82,0.00012313,2]
[422602869,1779143431000,-25430.91953727,0.00012634,2]
[422602854,1779143431000,-2950.06,0.00012247,2]
[422602855,1779143431000,-150.0,0.00012282,2]
[422602859,1779143431000,-814.4099363,0.00012402,2]
[422602864,1779143431000,-485.67496878,0.00012432,2]
[422602857,1779143431000,-221.0,0.00012369,2]
[422602870,1779143431000,-1503.14592439,0.00012634,2]
[422602868,1779143431000,-150.0,0.00012633,2]
[422602866,1779143431000,-10798.55,0.00012475,2]
[422602872,1779143431000,-8778.30811633,0.00012634,2]
[422602873,1779143431000,-1690.33397103,0.00012634,2]
[422602876,1779143431000,-1557.27262659,0.00012634,2]
[422602875,1779143431000,-398.23314633,0.00012634,2]
[422602877,1779143431000,-3062.50869219,0.00012634,2]
[422602874,1779143431000,-1784.75033489,0.00012634,2]
[422602878,1779143431000,-1798.21317937,0.00012668,2]
[422602879,1779143431000,-733.72096474,0.00012704,2]
[422602881,1779143431000,-625.05307491,0.00012704,2]
[422602882,1779143431000,-371.24548325,0.00012704,2]
[422602871,1779143431000,-522.00245098,0.00012634,2]
[422602883,1779143432000,-269.9804771,0.00012704,2]
[422602884,1779143432000,-150.0,0.0001271,2]
[422602886,1779143432000,-550.1040118,0.00012734,2]
[422602885,1779143432000,-153.02,0.00012713,2]
[422602887,1779143432000,-1255.39034168,0.00012734,2]
[422602934,1779143438000,-500.0,0.00013597,2]
[422602942,1779143438000,-917285.8424,0.00013598,2]
[422602946,1779143438000,-500.0,0.0001363,2]
[422602937,1779143438000,-500.0,0.00013597,2]
[422602950,1779143438000,-5780.85,0.00013646,2]
[422602947,1779143438000,-500.0,0.0001363,2]
[422602938,1779143438000,-500.0,0.00013597,2]
[422602944,1779143438000,-7073.83617278,0.00013607,2]
[422602939,1779143438000,-500.0,0.00013597,2]
[422602948,1779143438000,-500.0,0.0001363,2]
[422602945,1779143438000,-1840.69,0.00013618,2]
[422602949,1779143438000,-500.0,0.0001363,2]
[422602964,1779143438000,-500.0,0.00013698,2]
[422602940,1779143438000,-177.83555519,0.00013597,2]
[422602943,1779143438000,-150.0,0.00013599,2]
[422602956,1779143438000,-500.0,0.00013698,2]
[422602951,1779143438000,-150.0,0.00013654,2]
[422602952,1779143438000,-30415.27501982,0.00013655,2]
[422602963,1779143438000,-500.0,0.00013698,2]
[422602959,1779143438000,-505.39999791,0.00013698,2]
[422602936,1779143438000,-500.0,0.00013597,2]
[422602957,1779143438000,-500.0,0.00013698,2]
[422602958,1779143438000,-500.0,0.00013698,2]
[422602960,1779143438000,-500.0,0.00013698,2]
[422602953,1779143438000,-1680.0,0.00013674,2]
[422602954,1779143438000,-2549.63762505,0.00013697,2]
[422602941,1779143438000,-254.08413358,0.00013597,2]
[422602935,1779143438000,-158.82364214,0.00013597,2]
[422602924,1779143438000,-150.0,0.00013488,2]
[422602933,1779143438000,-211.61607221,0.00013597,2]
[422602905,1779143438000,-13920.32839644,0.00012734,2]
[422602910,1779143438000,-2000.0,0.00012813,2]
[422602908,1779143438000,-107277.36059069,0.00012734,2]
[422602907,1779143438000,-3105.82464839,0.00012734,2]
[422602909,1779143438000,-10986.01,0.00012811,2]
[422602904,1779143438000,-500.0,0.00012643,2]
[422602906,1779143438000,-505.022011,0.00012734,2]
[422602916,1779143438000,-250.0,0.00013449,2]
[422602915,1779143438000,-7073.83617278,0.00013423,2]
[422602913,1779143438000,-1840.69,0.00013301,2]
[422602919,1779143438000,-150.0,0.00013488,2]
[422602912,1779143438000,-7073.83617286,0.00013238,2]
[422602917,1779143438000,-150.0,0.00013488,2]
[422602918,1779143438000,-150.0,0.00013488,2]
[422602920,1779143438000,-150.0,0.00013488,2]
[422602914,1779143438000,-174.2,0.00013326,2]
[422602911,1779143438000,-1840.69,0.00012985,2]
[422602922,1779143438000,-150.0,0.00013488,2]
[422602921,1779143438000,-150.0,0.00013488,2]
[422602923,1779143438000,-150.0,0.00013488,2]
[422602926,1779143438000,-150.0,0.00013488,2]
[422602929,1779143438000,-30415.27501991,0.00013499,2]
[422602931,1779143438000,-500.0,0.00013597,2]
[422602927,1779143438000,-150.0,0.00013488,2]
[422602925,1779143438000,-150.0,0.00013488,2]
[422602928,1779143438000,-2549.63762511,0.00013497,2]
[422602930,1779143438000,-150.0,0.00013543,2]
[422602932,1779143438000,-226.17804635,0.00013597,2]
[422602962,1779143438000,-500.0,0.00013698,2]
[422602973,1779143438000,-299.99,0.00013699,2]
[422602961,1779143438000,-500.0,0.00013698,2]
[422602997,1779143438000,-150.0,0.00013737,2]
[422602998,1779143438000,-150.0,0.00013765,2]
[422603000,1779143438000,-500.0,0.00013781,2]
[422602999,1779143438000,-500.0,0.00013781,2]
[422603001,1779143438000,-500.0,0.00013781,2]
[422603002,1779143438000,-432.0,0.00013781,2]
[422603004,1779143438000,-563.65224418,0.00013802,2]
[422603013,1779143438000,-30415.27501982,0.00013966,2]
[422603007,1779143438000,-166.66,0.00013836,2]
[422603003,1779143438000,-7073.83617278,0.00013792,2]
[422603011,1779143438000,-1840.69,0.00013935,2]
[422603008,1779143438000,-304.0,0.00013863,2]
[422602993,1779143438000,-166.66,0.00013699,2]
[422603012,1779143438000,-208.5339928,0.00013954,2]
[422603006,1779143438000,-150.0,0.00013821,2]
[422603010,1779143438000,-150.0,0.00013932,2]
[422603005,1779143438000,-30415.27501982,0.0001381,2]
[422603014,1779143438000,-500.0,0.00013972,2]
[422603015,1779143438000,-166.66,0.00013973,2]
[422603016,1779143438000,-7073.83617278,0.00013977,2]
[422603020,1779143438000,-250.0,0.00014,2]
[422603018,1779143438000,-150.0,0.00013987,2]
[422603017,1779143438000,-150.0,0.00013987,2]
[422603019,1779143438000,-150.0,0.00013987,2]
[422603021,1779143438000,-290.938091,0.00014004,2]
[422602955,1779143438000,-500.0,0.00013698,2]
[422603009,1779143438000,-150.0,0.00013876,2]
[422602994,1779143438000,-1106.82362789,0.00013699,2]
[422603022,1779143438000,-663.647953,0.00014004,2]
[422602996,1779143438000,-255.0,0.00013732,2]
[422602971,1779143438000,-709.37,0.00013698,2]
[422602966,1779143438000,-500.0,0.00013698,2]
[422602967,1779143438000,-500.0,0.00013698,2]
[422602972,1779143438000,-500.0,0.00013698,2]
[422602970,1779143438000,-709.37,0.00013698,2]
[422602965,1779143438000,-500.0,0.00013698,2]
[422602968,1779143438000,-709.37,0.00013698,2]
[422602991,1779143438000,-200.0,0.00013699,2]
[422602975,1779143438000,-1487.95,0.00013699,2]
[422602974,1779143438000,-999.99,0.00013699,2]
[422602976,1779143438000,-499.99,0.00013699,2]
[422602978,1779143438000,-2130.55,0.00013699,2]
[422602984,1779143438000,-9999.99,0.00013699,2]
[422602969,1779143438000,-709.37,0.00013698,2]
[422602981,1779143438000,-7209.11,0.00013699,2]
[422602995,1779143438000,-150.0,0.0001371,2]
[422602977,1779143438000,-9999.99,0.00013699,2]
[422602992,1779143438000,-2500.0,0.00013699,2]
[422602989,1779143438000,-1196.09,0.00013699,2]
[422602988,1779143438000,-190734.85,0.00013699,2]
[422602986,1779143438000,-2201.76,0.00013699,2]
[422602990,1779143438000,-24999.99,0.00013699,2]
[422602985,1779143438000,-150.99,0.00013699,2]
[422602979,1779143438000,-838.34,0.00013699,2]
[422602980,1779143438000,-314.44,0.00013699,2]
[422602982,1779143438000,-9999.99,0.00013699,2]
[422602983,1779143438000,-1628.27,0.00013699,2]
[422602987,1779143438000,-9999.99,0.00013699,2]
[422603058,1779143439000,-500.0,0.00014289,2]
[422603064,1779143439000,-709.37,0.00014289,2]
[422603065,1779143439000,-709.37,0.00014289,2]
[422603061,1779143439000,-709.37,0.00014289,2]
[422603063,1779143439000,-709.37,0.00014289,2]
[422603053,1779143439000,-500.0,0.00014289,2]
[422603056,1779143439000,-500.0,0.00014289,2]
[422603057,1779143439000,-500.0,0.00014289,2]
[422603055,1779143439000,-500.0,0.00014289,2]
[422603054,1779143439000,-500.0,0.00014289,2]
[422603059,1779143439000,-500.0,0.00014289,2]
[422603060,1779143439000,-500.0,0.00014289,2]
[422603077,1779143439000,-150.0,0.00014431,2]
[422603067,1779143439000,-1500000.0,0.0001429,2]
[422603066,1779143439000,-709.37,0.00014289,2]
[422603068,1779143439000,-153.02,0.00014302,2]
[422603070,1779143439000,-3472.8984539,0.00014339,2]
[422603069,1779143439000,-150.0,0.0001432,2]
[422603072,1779143439000,-150.0,0.00014376,2]
[422603071,1779143439000,-7073.83617278,0.00014346,2]
[422603073,1779143439000,-166.66,0.00014384,2]
[422603074,1779143439000,-4681.93475633,0.00014404,2]
[422603075,1779143439000,-359.6298499,0.00014404,2]
[422603076,1779143439000,-2000.0,0.00014415,2]
[422603051,1779143439000,-500.0,0.00014289,2]
[422603062,1779143439000,-709.37,0.00014289,2]
[422603050,1779143439000,-500.0,0.00014289,2]
[422603036,1779143439000,-3472.8984539,0.00014199,2]
[422603048,1779143439000,-30415.27501982,0.00014277,2]
[422603079,1779143439000,-3472.8984539,0.00014479,2]
[422603023,1779143439000,-1470.291118,0.00014004,2]
[422603026,1779143439000,-150.0,0.00014043,2]
[422603027,1779143439000,-500.0,0.00014055,2]
[422603028,1779143439000,-150.0,0.00014098,2]
[422603025,1779143439000,-163.82,0.00014025,2]
[422603024,1779143439000,-405.621328,0.00014004,2]
[422603032,1779143439000,-7073.83617278,0.00014161,2]
[422603030,1779143439000,-30415.27501982,0.00014122,2]
[422603031,1779143439000,-150.0,0.00014154,2]
[422603029,1779143439000,-166.66,0.0001411,2]
[422603035,1779143439000,-184.17677168,0.00014198,2]
[422603052,1779143439000,-500.0,0.00014289,2]
[422603033,1779143439000,-500.0,0.00014164,2]
[422603037,1779143439000,-152.0,0.00014209,7]
[422603043,1779143439000,-166.66,0.00014247,2]
[422603038,1779143439000,-150.0,0.00014209,2]
[422603044,1779143439000,-152.0,0.00014253,7]
[422603039,1779143439000,-152.0,0.00014224,7]
[422603040,1779143439000,-152.0,0.00014224,7]
[422603042,1779143439000,-500.0,0.00014246,2]
[422603041,1779143439000,-150.0,0.00014237,2]
[422603046,1779143439000,-150.0,0.00014265,2]
[422603045,1779143439000,-152.0,0.00014253,7]
[422603047,1779143439000,-44207.0,0.00014274,2]
[422603049,1779143439000,-500.0,0.00014289,2]
[422603034,1779143439000,-10000.0,0.00014187,2]
[422603078,1779143439000,-30415.27501982,0.00014433,2]
[422603080,1779143439000,-150.0,0.00014487,2]
[422603126,1779143439000,-709.37,0.00014899,2]
[422603112,1779143439000,-330.0,0.00014871,2]
[422603115,1779143439000,-330.0,0.00014892,2]
[422603114,1779143439000,-200.0,0.0001488,2]
[422603124,1779143439000,-500.0,0.00014899,2]
[422603120,1779143439000,-500.0,0.00014899,2]
[422603119,1779143439000,-500.0,0.00014899,2]
[422603118,1779143439000,-500.0,0.00014899,2]
[422603125,1779143439000,-709.37,0.00014899,2]
[422603122,1779143439000,-637.31660207,0.00014899,2]
[422603123,1779143439000,-500.0,0.00014899,2]
[422603127,1779143439000,-330.0,0.000149,2]
[422603121,1779143439000,-500.0,0.00014899,2]
[422603110,1779143439000,-330.0,0.00014844,2]
[422603131,1779143439000,-1165.0,0.000149,5]
[422603130,1779143439000,-16559.1287468,0.000149,3]
[422603143,1779143439000,-330.0,0.0001492,2]
[422603146,1779143439000,-150.0,0.00014931,2]
[422603132,1779143439000,-7073.83617278,0.000149,2]
[422603144,1779143439000,-579.053691,0.00014925,2]
[422603136,1779143439000,-3472.8984539,0.000149,2]
[422603145,1779143439000,-330.0,0.00014926,2]
[422603140,1779143439000,-330.0,0.00014903,2]
[422603134,1779143439000,-30415.27501982,0.000149,2]
[422603142,1779143439000,-330.0,0.00014905,2]
[422603138,1779143439000,-330.0,0.00014902,2]
[422603083,1779143439000,-500.0,0.0001452,2]
[422603128,1779143439000,-5000.0,0.000149,2]
[422603109,1779143439000,-330.0,0.00014827,2]
[422603117,1779143439000,-500.0,0.00014899,2]
[422603111,1779143439000,-330.0,0.00014851,2]
[422603091,1779143439000,-150.0,0.00014653,2]
[422603084,1779143439000,-7073.83617278,0.00014531,2]
[422603087,1779143439000,-150.0,0.00014598,2]
[422603090,1779143439000,-3472.8984539,0.0001462,2]
[422603085,1779143439000,-150.0,0.00014542,2]
[422603082,1779143439000,-150.0,0.00014487,2]
[422603088,1779143439000,-2025.18,0.000146,2]
[422603081,1779143439000,-150.0,0.00014487,2]
[422603089,1779143439000,-298.26,0.000146,2]
[422603107,1779143439000,-330.0,0.00014819,2]
[422603092,1779143439000,-150.0,0.00014709,2]
[422603094,1779143439000,-1027.916,0.00014729,2]
[422603093,1779143439000,-7073.83617278,0.00014715,2]
[422603099,1779143439000,-330.0,0.0001475,2]
[422603086,1779143439000,-30415.27501982,0.00014589,2]
[422603101,1779143439000,-150.0,0.00014764,2]
[422603113,1779143439000,-150.0,0.00014875,2]
[422603098,1779143439000,-330.0,0.00014745,2]
[422603106,1779143439000,-330.0,0.00014804,2]
[422603105,1779143439000,-500.0,0.00014794,2]
[422603104,1779143439000,-150.0,0.00014794,2]
[422603102,1779143439000,-267.54382716,0.00014771,2]
[422603108,1779143439000,-150.0,0.0001482,2]
[422603100,1779143439000,-3472.8984539,0.0001476,2]
[422603095,1779143439000,-150.0,0.00014737,2]
[422603096,1779143439000,-330.0,0.00014744,2]
[422603097,1779143439000,-30415.27501982,0.00014744,2]
[422603103,1779143439000,-330.0,0.00014772,2]
[422603192,1779143440000,-500.0,0.00014999,2]
[422603188,1779143440000,-500.0,0.00014999,2]
[422603186,1779143440000,-500.0,0.00014999,2]
[422603187,1779143440000,-500.0,0.00014999,2]
[422603185,1779143440000,-500.0,0.00014999,2]
[422603179,1779143440000,-500.0,0.00014999,2]
[422603184,1779143440000,-500.0,0.00014999,2]
[422603178,1779143440000,-500.0,0.00014999,2]
[422603182,1779143440000,-500.0,0.00014999,2]
[422603181,1779143440000,-500.0,0.00014999,2]
[422603197,1779143440000,-300.11260606,0.00014999,2]
[422603180,1779143440000,-500.0,0.00014999,2]
[422603193,1779143440000,-500.0,0.00014999,2]
[422603207,1779143440000,-709.37,0.00014999,2]
[422603201,1779143440000,-709.37,0.00014999,2]
[422603189,1779143440000,-500.0,0.00014999,2]
[422603205,1779143440000,-709.37,0.00014999,2]
[422603198,1779143440000,-709.37,0.00014999,2]
[422603196,1779143440000,-500.0,0.00014999,2]
[422603191,1779143440000,-500.0,0.00014999,2]
[422603203,1779143440000,-709.37,0.00014999,2]
[422603209,1779143440000,-709.47,0.00014999,2]
[422603200,1779143440000,-709.37,0.00014999,2]
[422603208,1779143440000,-709.37,0.00014999,2]
[422603206,1779143440000,-709.37,0.00014999,2]
[422603194,1779143440000,-500.0,0.00014999,2]
[422603183,1779143440000,-500.0,0.00014999,2]
[422603190,1779143440000,-500.0,0.00014999,2]
[422603177,1779143440000,-500.0,0.00014999,2]
[422603148,1779143440000,-330.0,0.00014933,2]
[422603176,1779143440000,-500.0,0.00014999,2]
[422603147,1779143440000,-433.0,0.00014932,2]
[422603149,1779143440000,-330.0,0.00014934,2]
[422603160,1779143440000,-254.08413358,0.0001499,2]
[422603153,1779143440000,-151.10219896,0.00014986,2]
[422603155,1779143440000,-150.0,0.00014986,2]
[422603161,1779143440000,-330.0,0.00014993,2]
[422603154,1779143440000,-150.0,0.00014986,2]
[422603156,1779143440000,-150.00000001,0.00014986,2]
[422603152,1779143440000,-150.0,0.00014986,2]
[422603150,1779143440000,-330.0,0.00014936,2]
[422603158,1779143440000,-248.657502,0.00014986,2]
[422603151,1779143440000,-150.0,0.00014986,2]
[422603157,1779143440000,-150.0,0.00014986,2]
[422603159,1779143440000,-254.08413358,0.0001499,2]
[422603170,1779143440000,-500.0,0.00014999,2]
[422603171,1779143440000,-500.0,0.00014999,2]
[422603162,1779143440000,-151.0,0.00014997,2]
[422603165,1779143440000,-212.95636389,0.00014999,2]
[422603168,1779143440000,-500.0,0.00014999,2]
[422603167,1779143440000,-500.0,0.00014999,2]
[422603166,1779143440000,-320.0,0.00014999,2]
[422603169,1779143440000,-500.0,0.00014999,2]
[422603163,1779143440000,-151.0,0.00014999,2]
[422603164,1779143440000,-534.8114487,0.00014999,2]
[422603172,1779143440000,-500.0,0.00014999,2]
[422603174,1779143440000,-500.0,0.00014999,2]
[422603173,1779143440000,-500.0,0.00014999,2]
[422603175,1779143440000,-500.0,0.00014999,2]
[422603195,1779143440000,-624.54,0.00014999,2]
[422603306,1779143440000,-500.0,0.00015068,2]
[422603199,1779143440000,-709.37,0.00014999,2]
[422603261,1779143440000,-154.51575,0.00015,2]
[422603254,1779143440000,-154.51575,0.00015,2]
[422603252,1779143440000,-154.51575,0.00015,2]
[422603263,1779143440000,-151.0,0.00015,2]
[422603259,1779143440000,-154.51574,0.00015,2]
[422603250,1779143440000,-154.51575,0.00015,2]
[422603267,1779143440000,-194.682262,0.00015,2]
[422603265,1779143440000,-151.0,0.00015,2]
[422603269,1779143440000,-151.0,0.00015,2]
[422603291,1779143440000,-151.0,0.00015,2]
[422603278,1779143440000,-151.936578,0.00015,2]
[422603272,1779143440000,-151.0,0.00015,2]
[422603286,1779143440000,-151.936578,0.00015,2]
[422603288,1779143440000,-151.0,0.00015,2]
[422603280,1779143440000,-151.936578,0.00015,2]
[422603276,1779143440000,-151.936578,0.00015,2]
[422603284,1779143440000,-151.936578,0.00015,2]
[422603282,1779143440000,-151.936578,0.00015,2]
[422603290,1779143440000,-292.340021,0.00015,2]
[422603277,1779143440000,-151.936578,0.00015,2]
[422603294,1779143440000,-151.0,0.00015,2]
[422603304,1779143440000,-2351.0,0.00015041,2]
[422603296,1779143440000,-151.0,0.00015,2]
[422603302,1779143440000,-622.23518063,0.0001502,2]
[422603298,1779143440000,-227.813015,0.00015,2]
[422603202,1779143440000,-709.37,0.00014999,2]
[422603300,1779143440000,-330.0,0.00015014,3]
[422603248,1779143440000,-151.0,0.00015,2]
[422603256,1779143440000,-154.51575,0.00015,2]
[422603274,1779143440000,-151.936578,0.00015,2]
[422603243,1779143440000,-209578.5603629,0.00015,2]
[422603204,1779143440000,-709.37,0.00014999,2]
[422603211,1779143440000,-173.04164456,0.00014999,2]
[422603246,1779143440000,-151.0,0.00015,2]
[422603210,1779143440000,-850.97363009,0.00014999,2]
[422603212,1779143440000,-300.0,0.00014999,2]
[422603214,1779143440000,-300.0,0.00014999,2]
[422603221,1779143440000,-1258.57,0.00015,2]
[422603218,1779143440000,-5856757.81212679,0.00015,2]
[422603217,1779143440000,-1133.0,0.00015,5]
[422603213,1779143440000,-300.0,0.00014999,2]
[422603219,1779143440000,-5290525.09774832,0.00015,2]
[422603223,1779143440000,-1000.0,0.00015,2]
[422603216,1779143440000,-666.0,0.00014999,2]
[422603220,1779143440000,-364.5049029,0.00015,2]
[422603224,1779143440000,-1000.0,0.00015,2]
[422603231,1779143440000,-201.76384242,0.00015,2]
[422603241,1779143440000,-200.0,0.00015,2]
[422603222,1779143440000,-1000.0,0.00015,2]
[422603226,1779143440000,-1000.0,0.00015,2]
[422603227,1779143440000,-1000.0,0.00015,2]
[422603228,1779143440000,-1000.0,0.00015,2]
[422603237,1779143440000,-200.0,0.00015,2]
[422603239,1779143440000,-9298.9905133,0.00015,2]
[422603235,1779143440000,-2170.5910745,0.00015,2]
[422603233,1779143440000,-200.0,0.00015,2]
[422603229,1779143440000,-1000.0,0.00015,2]
[422603215,1779143440000,-300.0,0.00014999,2]
[422603225,1779143440000,-1000.0,0.00015,2]
[422603368,1779143441000,-163.82,0.00016362,2]
[422603373,1779143441000,-151.0,0.00016438,2]
[422603372,1779143441000,-151.0,0.00016438,2]
[422603370,1779143441000,-536.4,0.00016438,2]
[422603374,1779143441000,-321.36,0.00016438,2]
[422603366,1779143441000,-762.54,0.00016287,2]
[422603365,1779143441000,-736.0,0.00016221,2]
[422603363,1779143441000,-790.2,0.00016013,2]
[422603361,1779143441000,-150.0,0.00016,2]
[422603362,1779143441000,-316.09634869,0.00016,2]
[422603364,1779143441000,-2000.0,0.00016016,2]
[422603377,1779143441000,-3292.0,0.00016546,2]
[422603369,1779143441000,-350.0,0.00016417,2]
[422603375,1779143441000,-214.24,0.00016438,2]
[422603388,1779143441000,-1100.48,0.00017572,2]
[422603371,1779143441000,-151.0,0.00016438,2]
[422603376,1779143441000,-165.19,0.00016501,2]
[422603378,1779143441000,-1258.57,0.000166,2]
[422603380,1779143441000,-623.52,0.000167,2]
[422603383,1779143441000,-151.53,0.0001711,2]
[422603381,1779143441000,-666.29,0.000167,2]
[422603385,1779143441000,-296.0,0.00017445,2]
[422603386,1779143441000,-153.02,0.0001748,2]
[422603384,1779143441000,-2950.06,0.00017146,2]
[422603387,1779143441000,-563.65224417,0.00017501,2]
[422603390,1779143441000,-423.83,0.000176,2]
[422603393,1779143441000,-1252.0,0.00017636,2]
[422603367,1779143441000,-301.107919,0.00016346,2]
[422603382,1779143441000,-156.85,0.00016712,2]
[422603359,1779143441000,-150.35093008,0.00016,2]
[422603314,1779143441000,-151.0,0.00015068,2]
[422603360,1779143441000,-150.0,0.00016,2]
[422603389,1779143441000,-1583.05,0.00017572,2]
[422603308,1779143441000,-500.0,0.00015068,2]
[422603310,1779143441000,-151.0,0.00015068,2]
[422603316,1779143441000,-151.0,0.00015068,2]
[422603312,1779143441000,-151.0,0.00015068,2]
[422603318,1779143441000,-436.32,0.00015145,2]
[422603330,1779143441000,-1541.0,0.00015224,2]
[422603337,1779143441000,-200.0,0.00015301,2]
[422603326,1779143441000,-1541.0,0.00015224,2]
[422603324,1779143441000,-200.0,0.0001515,2]
[422603320,1779143441000,-200.0,0.0001515,2]
[422603322,1779143441000,-200.0,0.0001515,2]
[422603332,1779143441000,-1581.5461074,0.00015224,2]
[422603339,1779143441000,-200.0,0.00015301,2]
[422603328,1779143441000,-1541.0,0.00015224,2]
[422603335,1779143441000,-166.66,0.00015295,2]
[422603334,1779143441000,-238.6149222,0.00015224,2]
[422603343,1779143441000,-200.0,0.00015455,2]
[422603355,1779143441000,-700.0,0.00015867,2]
[422603351,1779143441000,-200.0,0.00015609,2]
[422603354,1779143441000,-162.86,0.00015828,2]
[422603353,1779143441000,-790.2,0.00015739,2]
[422603357,1779143441000,-300.0,0.00016,2]
[422603345,1779143441000,-200.0,0.00015455,2]
[422603352,1779143441000,-563.65224417,0.00015652,2]
[422603341,1779143441000,-200.0,0.00015301,2]
[422603349,1779143441000,-200.0,0.00015609,2]
[422603356,1779143441000,-153.02,0.00015891,2]
[422603347,1779143441000,-174.2,0.00015525,2]
[422603358,1779143441000,-150.0,0.00016,2]
[422603392,1779143441000,-2000.0,0.00017618,2]
[422603379,1779143441000,-436.32,0.00016659,2]
[422603396,1779143441000,-500.0,0.00017808,2]
[422603426,1779143441000,-198.39535058,0.000185,2]
[422603427,1779143441000,-300.0,0.0001855,2]
[422603425,1779143441000,-536.4,0.0001841,2]
[422603428,1779143441000,-500.0,0.00018551,2]
[422603429,1779143441000,-200.0,0.00018551,2]
[422603435,1779143441000,-500.0,0.00018551,2]
[422603433,1779143441000,-500.0,0.00018551,2]
[422603440,1779143441000,-399.18681661,0.00018551,2]
[422603438,1779143441000,-500.0,0.00018551,2]
[422603445,1779143441000,-151.0,0.00018551,2]
[422603434,1779143441000,-500.0,0.00018551,2]
[422603439,1779143441000,-668.65185757,0.00018551,2]
[422603442,1779143441000,-168.82441293,0.00018551,2]
[422603447,1779143441000,-151.0,0.00018551,2]
[422603437,1779143441000,-500.0,0.00018551,2]
[422603441,1779143441000,-2005.9555727,0.00018551,2]
[422603448,1779143441000,-151.0,0.00018551,2]
[422603444,1779143441000,-151.0,0.00018551,2]
[422603446,1779143441000,-151.0,0.00018551,2]
[422603436,1779143441000,-500.0,0.00018551,2]
[422603451,1779143441000,-1113.4286202,0.00018551,2]
[422603453,1779143441000,-151.0,0.00018551,2]
[422603455,1779143441000,-151.0,0.00018551,2]
[422603450,1779143441000,-151.0,0.00018551,2]